fUSD/lending_fUSD_20240213
["ID","MTS","AMOUNT","RATE_DAILY","PERIOD"]
[313924473,1707827441629,-153.11,0.000335,2]
[313924474,1707827441638,-153.11,0.000335,2]
[313924475,1707827441647,-153.11,0.000335,2]
[313924476,1707827441656,-153.11,0.000335,2]
[313924477,1707827441684,-153.11,0.000335,2]
[313924478,1707827441704,-153.11,0.000335,2]
[313924479,1707827441713,-153.11,0.000335,2]
[313924480,1707827441722,-151.0,0.00033517,30]
[313924481,1707827441731,-8538.29817789,0.00033647,5]
[313924482,1707827441740,-5000.0,0.00033698,5]
[313924483,1707827441749,-1000.0,0.00033698,5]
[313924484,1707827441758,-150.0,0.00033742,2]
[313924485,1707827441768,-545.58,0.00033752,2]
[313924486,1707827441777,-151.95104561,0.000339,2]
[313924487,1707827441786,-151.95104561,0.000339,2]
[313924488,1707827441796,-151.95104561,0.000339,2]
[313924489,1707827441805,-422.65707852,0.00033966,2]
[313924490,1707827441814,-5000.0,0.00033972,6]
[313924491,1707827441823,-50000.0,0.00034,4]
[313924492,1707827441831,-155.0,0.00034,4]
[313924493,1707827441841,-2169.94036913,0.00034,4]
[313924494,1707827441849,-767.6781702,0.00034,4]
[313924495,1707827441858,-150.0,0.00034,23]
[313924496,1707827441868,-545.58,0.00034026,2]
[313924497,1707827441877,-150.51,0.00034057,2]
[313924498,1707827441886,-151.0,0.00034201,7]
[313924499,1707827441895,-5000.0,0.00034246,7]
[313924500,1707827441904,-545.58,0.000343,2]
[313924501,1707827441913,-750.0,0.000344,2]
[313924502,1707827441922,-8538.29817789,0.00034421,6]
[313924503,1707827441931,-150.0,0.000345,23]
[313924504,1707827441941,-173.17,0.00034516,2]
[313924505,1707827441950,-1962.596768,0.0003452,2]
[313924506,1707827441959,-5000.0,0.0003452,8]
[313924507,1707827441968,-291.66412942,0.0003452,7]
[313924508,1707827441978,-150.0,0.0003452,7]
[313924509,1707827441987,-2257.22,0.00034521,2]
[313924510,1707827441997,-169.0,0.00034521,2]
[313924511,1707827442006,-151.95104561,0.00034561,2]
[313924512,1707827442015,-545.58,0.00034574,2]
[313924513,1707827442025,-153.11,0.000346,2]
[313924514,1707827442034,-153.11,0.000346,2]
[313924515,1707827442044,-153.11,0.000346,2]
[313924516,1707827442053,-153.11,0.000346,2]
[313924517,1707827442063,-153.11,0.000346,2]
[313924518,1707827442072,-153.11,0.000346,2]
[313924519,1707827442082,-153.11,0.000346,2]
[313924520,1707827442091,-153.11,0.000346,2]
[313924521,1707827442101,-153.11,0.000346,2]
[313924522,1707827442111,-153.11,0.000346,2]
[313924523,1707827442120,-153.11,0.000346,2]
[313924524,1707827442130,-153.11,0.000346,2]
[313924525,1707827442139,-150.0,0.00034607,2]
[313924526,1707827442148,-6879.1826554,0.0003465,2]
[313924527,1707827442157,-433.76,0.0003473,2]
[313924528,1707827442167,-2943.895152,0.00034794,2]
[313924529,1707827442176,-5000.0,0.00034794,9]
[313924530,1707827442185,-545.58,0.00034848,2]
[313924531,1707827442195,-151.0,0.00034899,4]
[313924532,1707827442204,-9020.33153679,0.000349,4]
[313924533,1707827442213,-2906.9452878,0.000349,2]
[313924534,1707827442223,-2906.94528774,0.000349,2]
[313924535,1707827442232,-2906.94528774,0.000349,2]
[313924536,1707827442242,-2906.94528774,0.000349,2]
[313924537,1707827442251,-151.67227232,0.00034903,7]
[313924538,1707827442261,-150.94817835,0.00034918,7]
[313924539,1707827442270,-151.3387461,0.00034925,7]
[313924540,1707827442280,-3925.193536,0.00034931,2]
[313924541,1707827442290,-162.21710524,0.00034951,7]
[313924542,1707827442299,-422.65707852,0.0003496,2]
[313924543,1707827442308,-153.15018631,0.00034966,7]
[313924544,1707827442317,-166.63863412,0.00034989,7]
[313924545,1707827442326,-74302.0,0.00034999,3]
[313924546,1707827442339,-50000.0,0.00035,5]
[313924547,1707827442348,-451.17975231,0.00035,4]
[313924548,1707827442357,-1268.90306075,0.00035,4]
[313924549,1707827442367,-193.69472516,0.00035,4]
[313924550,1707827442376,-221.5444787,0.00035,30]
[313924551,1707827442386,-500.9945941,0.00035,4]
[313924552,1707827442395,-844.04824905,0.00035,2]
[313924553,1707827442404,-216.55603098,0.00035,4]
[313924554,1707827442414,-68254.89739699,0.00035,4]
[313924555,1707827442423,-15855.16255873,0.00035,7]
[313924556,1707827442432,-18273.78751439,0.00035,10]
[313924557,1707827442441,-391.2568003,0.00035,4]
[313924558,1707827442449,-155.0,0.00035,2]
[313924559,1707827442458,-74525.88753847,0.00035,4]
[313924560,1707827442467,-150.0,0.00035,24]
[313924561,1707827442476,-3000.0,0.00035,2]
[313924562,1707827442485,-4915.56933434,0.00035,10]
[313924563,1707827442494,-162.21710524,0.00035013,7]
[313924564,1707827442503,-5053.51178493,0.0003502,2]
[313924565,1707827442512,-155.00792311,0.00035022,7]
[313924566,1707827442521,-154.36120313,0.00035023,7]
[313924567,1707827442530,-151.67227232,0.00035034,7]
[313924568,1707827442539,-154.36120313,0.00035036,7]
[313924569,1707827442549,-166.63863412,0.00035044,7]
[313924570,1707827442558,-4906.49192,0.00035068,2]
[313924571,1707827442567,-5000.0,0.00035068,10]
[313924572,1707827442577,-545.58,0.00035122,2]
[313924573,1707827442586,-1026.83462539,0.00035151,7]
[313924574,1707827442595,-408.46268104,0.00035171,7]
[313924575,1707827442605,-154.16943477,0.00035174,7]
[313924576,1707827442614,-8538.29817789,0.00035196,7]
[313924578,1707827442623,-156.75392784,0.00035242,7]
[313924580,1707827442632,-151.67227232,0.00035285,7]
[313924581,1707827442641,-150.0,0.00035288,7]
[313924582,1707827442650,-2906.94528774,0.00035311,2]
[313924583,1707827442659,-6869.088689,0.00035342,2]
[313924584,1707827442668,-150.94077731,0.00035342,7]
[313924585,1707827442677,-159.25554888,0.00035372,7]
[313924586,1707827442686,-545.63575634,0.00035396,2]
[313924587,1707827442695,-151.67227232,0.00035397,7]
[313924588,1707827442705,-155.00792311,0.00035427,7]
[313924589,1707827442714,-1000.0,0.00035446,2]
[313924590,1707827442723,-151.3387461,0.00035467,7]
[313924592,1707827442732,-162.21710524,0.00035471,7]
[313924594,1707827442741,-150.0,0.00035472,2]
[313924597,1707827442749,-162.21710524,0.00035495,7]
[313924599,1707827442757,-150.0,0.000355,24]
[313924600,1707827442767,-408.46268104,0.00035511,7]
[313924601,1707827442776,-175.61549679,0.00035512,7]
[313924602,1707827442785,-1026.83462539,0.00035523,7]
[313924603,1707827442794,-408.46268104,0.00035562,7]
[313924604,1707827442803,-176.06755173,0.00035581,7]
[313924605,1707827442812,-182.29171093,0.00035594,7]
[313924606,1707827442820,-1026.83462539,0.00035599,7]
[313924607,1707827442830,-151.0,0.00035611,2]
[313924608,1707827442839,-162.21710524,0.00035639,7]
[313924609,1707827442848,-205.0,0.00035664,9]
[313924610,1707827442858,-185.0,0.000357,120]
[313924611,1707827442866,-1026.83462539,0.00035731,7]
[313924612,1707827442876,-983.27719691,0.00035739,4]
[313924613,1707827442885,-150.94077731,0.00035753,7]
[313924614,1707827442894,-150.94077731,0.00035768,7]
[313924615,1707827442903,-2257.22,0.00035798,2]
[313924616,1707827442913,-153.11,0.000358,3]
[313924617,1707827442923,-153.11,0.000358,3]
[313924618,1707827442932,-153.11,0.000358,3]
[313924619,1707827442942,-153.11,0.000358,3]
[313924620,1707827442951,-153.11,0.000358,3]
[313924621,1707827442960,-153.11,0.000358,3]
[313924622,1707827442970,-153.11,0.000358,3]
[313924623,1707827442980,-153.11,0.000358,3]
[313924624,1707827442989,-153.11,0.000358,3]
[313924625,1707827442998,-153.11,0.000358,3]
[313924626,1707827443008,-153.11,0.000358,3]
[313924627,1707827443018,-153.11,0.000358,3]
[313924628,1707827443027,-1026.83462539,0.00035804,7]
[313924629,1707827443036,-150.94077731,0.0003582,7]
[313924630,1707827443046,-150.94817835,0.00035859,7]
[313924631,1707827443055,-408.46268104,0.00035859,7]
[313924632,1707827443065,-408.46268104,0.00035882,7]
[313924633,1707827443074,-846.04,0.0003589,120]
[313924634,1707827443083,-1000.0,0.000359,2]
[313924635,1707827443093,-155.44466971,0.00035926,7]
[313924636,1707827443102,-154.16943477,0.00035939,7]
[313924637,1707827443111,-422.65707852,0.00035954,2]
[313924638,1707827443120,-8538.29817789,0.0003597,8]
[313924639,1707827443129,-151.3387461,0.00035976,7]
[313924640,1707827443138,-50000.0,0.00036,6]
[313924641,1707827443147,-155.0,0.00036,4]
[313924642,1707827443156,-150.0,0.00036,25]
[313924643,1707827443166,-2350.35989911,0.00036,15]
[313924644,1707827443175,-162.29024246,0.00036004,7]
[313924645,1707827443185,-162.29024246,0.00036018,7]
[313924646,1707827443195,-151.67227232,0.00036054,7]
[313924647,1707827443204,-150.0,0.00036055,7]
[313924648,1707827443213,-408.46268104,0.00036067,7]
[313924649,1707827443222,-156.5126873,0.00036128,7]
[313924651,1707827443231,-150.94077731,0.00036149,7]
[313924653,1707827443240,-151.3387461,0.00036178,7]
[313924655,1707827443249,-152.79601926,0.00036237,2]
[313924657,1707827443258,-173.0,0.00036247,2]
[313924658,1707827443267,-175.26482667,0.00036262,7]
[313924659,1707827443276,-408.46268104,0.00036262,7]
[313924661,1707827443286,-169.26329821,0.00036331,7]
[313924662,1707827443295,-150.0,0.00036337,2]
[313924663,1707827443303,-50000.0,0.00036339,15]
[313924664,1707827443312,-154.36120313,0.00036344,7]
[313924665,1707827443320,-151.95104561,0.00036414,2]
[313924666,1707827443332,-153.5068063,0.00036478,7]
[313924667,1707827443341,-150.0,0.000365,25]
[313924668,1707827443350,-151.3387461,0.00036514,7]
[313924669,1707827443359,-156.75392784,0.00036549,7]
[313924670,1707827443368,-150.49090307,0.00036622,7]
[313924671,1707827443378,-161.76661052,0.0003663,7]
[313924672,1707827443387,-1026.83462539,0.00036648,7]
[313924673,1707827443396,-173.17,0.00036655,2]
[313924674,1707827443405,-151.67227232,0.00036664,7]
[313924675,1707827443415,-1026.83462539,0.00036681,7]
[313924676,1707827443424,-750.0,0.0003669,2]
[313924677,1707827443433,-162.29024246,0.00036696,7]
[313924678,1707827443442,-154.0808095,0.00036705,7]
[313924679,1707827443451,-8538.29817789,0.00036745,9]
[313924680,1707827443461,-151.3387461,0.00036773,7]
[313924681,1707827443469,-408.46268104,0.00036782,7]
[313924682,1707827443478,-150.0,0.00036822,7]
[313924683,1707827443487,-150.94077731,0.00036862,7]
[313924684,1707827443497,-117506.0,0.00036887,20]
[313924685,1707827443506,-2906.94528774,0.0003689,2]
[313924686,1707827443515,-408.46268104,0.00036897,7]
[313924687,1707827443525,-1026.83462539,0.00036898,7]
[313924688,1707827443533,-153.11,0.000369,3]
[313924689,1707827443542,-153.11,0.000369,3]
[313924690,1707827443551,-153.11,0.000369,3]
[313924691,1707827443560,-153.11,0.000369,3]
[313924692,1707827443570,-153.11,0.000369,3]
[313924693,1707827443579,-153.11,0.000369,3]
[313924694,1707827443588,-153.11,0.000369,3]
[313924695,1707827443597,-153.11,0.000369,3]
[313924696,1707827443606,-153.11,0.000369,3]
[313924697,1707827443615,-153.11,0.000369,3]
[313924698,1707827443625,-153.11,0.000369,3]
[313924699,1707827443635,-153.11,0.000369,3]
[313924700,1707827443644,-152.22966065,0.00036945,2]
[313924701,1707827443654,-422.65707852,0.00036948,2]
[313924702,1707827443663,-433.76,0.00036994,2]
[313924703,1707827443672,-50000.0,0.00037,7]
[313924704,1707827443682,-312.09039543,0.00037,4]
[313924705,1707827443691,-4208.72021604,0.00037,14]
[313924706,1707827443700,-150.0,0.00037,26]
[313924707,1707827443709,-2349.0,0.00037,15]
[313924708,1707827443719,-5009.88,0.00037,20]
[313924709,1707827443727,-162.21710524,0.00037029,7]
[313924710,1707827443737,-408.46268104,0.00037032,7]
[313924711,1707827443746,-155.44466971,0.00037044,7]
[313924712,1707827443755,-2257.22,0.00037075,2]
[313924713,1707827443764,-154.16943477,0.00037093,7]
[313924714,1707827443773,-10087.36058997,0.000371,7]
[313924715,1707827443782,-50944.059431,0.000371,2]
[313924716,1707827443792,-1026.83462539,0.000371,7]
[313924717,1707827443801,-150.0,0.00037115,2]
[313924718,1707827443810,-150.94077731,0.0003715,7]
[313924719,1707827443819,-153.15018631,0.0003717,7]
[313924720,1707827443828,-150.0,0.00037203,2]
[313924721,1707827443837,-162.21710524,0.00037227,7]
[313924722,1707827443846,-380.97082773,0.00037244,4]
[313924723,1707827443855,-46185.80471883,0.00037267,20]
[313924724,1707827444034,-48406.0718328,0.00037267,20]
[313924725,1707827444046,-1846.38097294,0.00037267,20]
[313924726,1707827444061,-7994.8,0.00037267,20]
[313924727,1707827444071,-12106.80756,0.00037267,20]
[313924728,1707827444087,-966.13491543,0.00037267,20]
[313924729,1707827444096,-154.16943477,0.00037269,7]
[313924730,1707827444105,-150.0,0.00037328,2]
[313924731,1707827444114,-169.26329821,0.00037389,7]
[313924732,1707827444123,-2516.80505927,0.000374,30]
[313924733,1707827444463,-5696.32817073,0.000374,30]
[313924734,1707827444475,-1615.37677,0.000374,30]
[313924735,1707827444484,-2370.9047406,0.000374,2]
[313924736,1707827444497,-7457.6052594,0.000374,2]
[313924737,1707827444506,-800.0,0.00037448,5]
[313924738,1707827444515,-200.0,0.00037448,10]
[313924739,1707827444525,-500.0,0.00037448,10]
[313924740,1707827444534,-150.94817835,0.00037479,7]
[313924741,1707827444544,-211.0,0.000375,30]
[313924742,1707827444553,-150.0,0.000375,26]
[313924743,1707827444563,-155.00792311,0.000375,7]
[313924744,1707827444572,-3291.12549425,0.000375,2]
[313924745,1707827444642,-403.3733774,0.000375,2]
[313924746,1707827444657,-1770.3287004,0.000375,2]
[313924747,1707827444674,-5993.60814298,0.000375,2]
[313924748,1707827444695,-25007.0,0.000375,2]
[313924749,1707827444706,-3278.53775442,0.000375,2]
[313924750,1707827446072,-262.439,0.00032536,2]
[313924751,1707827446083,-594.48633796,0.00033499,4]
[313924752,1707827446092,-6879.1826554,0.0003465,2]
[313924753,1707827446102,-150.0,0.00036782,5]
[313924754,1707827446112,-42126.67521655,0.000375,2]
[313924778,1707828078573,544.0,0.000283,30]
[313924875,1707828631934,-161.39054706,0.00024998,2]
[313924876,1707828631944,-1055.77540635,0.00024999,2]
[313924877,1707828631991,-1580.19228089,0.00024999,2]
[313924878,1707828632000,-350.0,0.00025,3]
[313924879,1707828632010,-1256.61818988,0.00025,2]
[313924880,1707828632019,-390.39,0.00026643,2]
[313924881,1707828632029,-157.11912365,0.00027242,2]
[313924882,1707828632038,-233.07110785,0.00027342,3]
[313924883,1707828632047,-1041.51,0.00028291,2]
[313924884,1707828632056,-1000.0,0.00028433,2]
[313924885,1707828632067,-736.8993119,0.00028469,2]
[313924886,1707828632078,-1263.1006881,0.00028469,2]
[313924887,1707828632088,-590.670196,0.00028635,2]
[313924888,1707828632099,-604.63435673,0.00028635,2]
[313924889,1707828632122,-1761.46080398,0.00028635,2]
[313924890,1707828632133,-2983.90038546,0.00028635,2]
[313924891,1707828632144,-1703.85428632,0.00028635,2]
[313924892,1707828632155,-265.0000001,0.00028635,2]
[313924893,1707828632171,-334.84098344,0.00028635,2]
[313924894,1707828632183,-3125.75820977,0.00028635,2]
[313924895,1707828632194,-472.38437692,0.00028635,2]
[313924896,1707828632205,-3085.92608726,0.00028635,2]
[313924897,1707828632226,-1017.82485725,0.00028635,2]
[313924898,1707828632237,-1713.03735611,0.00028635,2]
[313924899,1707828632248,-393.45872412,0.00028635,2]
[313924944,1707828637999,-573.06,0.00028635,2]
[313924945,1707828638008,-23900.0,0.00028721,2]
[313924946,1707828638017,-250.0,0.0002881,2]
[313924947,1707828638026,-152.84,0.00028875,2]
[313924948,1707828638035,-390.39,0.00028907,2]
[313924949,1707828638044,-157.07017675,0.00028993,6]
[313924950,1707828638053,-202.13886159,0.00028993,2]
[313924951,1707828638062,-312.92960044,0.00028993,2]
[313924952,1707828638072,-27953.1653,0.00028994,2]
[313924953,1707828638081,-1000.0,0.00028994,2]
[313924954,1707828638090,-555.297441,0.00029093,2]
[313924955,1707828638099,-500.0,0.00029093,2]
[313924956,1707828638109,-175.17244616,0.00029094,2]
[313924957,1707828638119,-203.08575862,0.00029095,2]
[313924958,1707828638128,-155.0,0.00029096,2]
[313924959,1707828638137,-336.98182137,0.00029097,2]
[313924960,1707828638146,-6537.40524445,0.00029098,2]
[313924961,1707828638217,-1006.1256195,0.00029098,2]
[313925101,1707828643085,-267.88337988,0.00029098,2]
[313925102,1707828643200,-723.50238996,0.00029098,2]
[313925103,1707828643212,-409.79455518,0.00029098,2]
[313925104,1707828643268,-1151.13503064,0.00029098,2]
[313925105,1707828643281,-1367.80188262,0.00029098,2]
[313925106,1707828643294,-541.88479081,0.00029098,2]
[313925116,1707828646100,-1619.21244694,0.00029097,2]
[313925117,1707828646109,-643.25519568,0.00029098,2]
[313925118,1707828646137,-736.19737716,0.00029098,2]
[313925119,1707828646149,-4805.24323817,0.00029098,2]
[313925120,1707828646250,-4992.17500001,0.00029098,2]
[313925121,1707828646262,-846.27509641,0.00029098,2]
[313925122,1707828646276,-11304.23159821,0.00029098,2]
[313925123,1707828646285,-201.68872548,0.00029098,2]
[313925124,1707828646295,-1267.21538289,0.00029098,2]
[313925125,1707828646304,-698.31668469,0.00029098,2]
[313925126,1707828646314,-1629.79039492,0.00029098,2]
[313925127,1707828646324,-156.75282014,0.00029098,2]
[313925128,1707828646336,-157.09620391,0.00029098,2]
[313925129,1707828646346,-132.86553103,0.00029188,2]
[313925130,1707828646358,-72.13446897,0.00029188,2]
[313925131,1707828646367,-500.0,0.00029367,2]
[313925132,1707828646376,-500.0,0.00029641,2]
[313925133,1707828646388,-422.65707858,0.000297,2]
[313925134,1707828646397,-161.39054706,0.00029764,2]
[313925135,1707828646407,-1015.14472422,0.00029764,2]
[313925136,1707828646416,-711.3006,0.00029765,2]
[313925137,1707828646428,-701.3611,0.00029765,2]
[313925138,1707828646438,-4951.00462978,0.00029765,2]
[313925139,1707828646450,-990.7898335,0.00029765,2]
[313925140,1707828646462,-35431.27411372,0.00029765,2]
[313925143,1707828669806,180000.0,0.00023,2]
[313925144,1707828669832,12559.80288,0.00023,2]
[313925198,1707829763529,562.92922663,0.00023,2]
[313925208,1707829832179,-446.51164892,0.00026029,2]
[313925212,1707829832234,-438.73888158,0.00026029,2]
[313925213,1707829832291,-1238.33836806,0.00026029,2]
[313925214,1707829832304,-209.06385665,0.00026029,2]
[313925215,1707829832313,-981.61370118,0.0002603,2]
[313925216,1707829832323,-519.90125621,0.00026031,2]
[313925217,1707829832332,-217.34883226,0.00026031,2]
[313925218,1707829832341,-625.28144977,0.00026031,2]
[313925219,1707829832350,-422.19790322,0.00026032,2]
[313925220,1707829832360,-421.67549177,0.00026032,2]
[313925221,1707829832369,-4868.95064365,0.00026032,2]
[313925222,1707829832379,-4269.4549921,0.00026032,2]
[313925223,1707829832389,-280.89971191,0.00026033,2]
[313925224,1707829832398,-156.10743605,0.00026033,2]
[313925225,1707829832407,-1093.0,0.00026033,2]
[313925226,1707829832417,-2029.03801024,0.00026034,2]
[313925227,1707829832426,-4661.53416558,0.00026034,2]
[313925228,1707829832435,-386.69622014,0.00026034,2]
[313925229,1707829832444,-187.77126087,0.00026035,2]
[313925230,1707829832453,-940.19624302,0.00026035,2]
[313925231,1707829832463,-3158.51142533,0.000267,2]
[313925232,1707829832472,-351.35,0.00026742,2]
[313925233,1707829832482,-3143.38051339,0.00027481,2]
[313925234,1707829832491,-2983.7818,0.00027899,2]
[313925235,1707829832503,-230.4052,0.00027899,2]
[313925236,1707829832513,-157.11912365,0.000279,2]
[313925238,1707829832522,-1232.0,0.00028,2]
[313925239,1707829832532,-2488.89915065,0.0002806,2]
[313925241,1707829832541,-500.0,0.00028107,2]
[313925242,1707829832550,-193.15,0.00028317,2]
[313925244,1707829832559,-250.0,0.00028544,2]
[313925246,1707829832568,-155.65311274,0.00028638,2]
[313925248,1707829832577,-867.92,0.00028679,2]
[313925250,1707829832587,-159.04,0.00028742,2]
[313925251,1707829832596,-800.0,0.00028824,2]
[313925253,1707829832605,-152.84,0.00028915,2]
[313925255,1707829832615,-155.0,0.00028925,2]
[313925257,1707829832625,-284.38164498,0.00028925,2]
[313925259,1707829832634,-3184.67200581,0.00028926,2]
[313925261,1707829832644,-1143.08375452,0.00028927,2]
[313925263,1707829832653,-155.0,0.00028927,2]
[313925264,1707829832662,-4724.16640004,0.00028927,2]
[313925266,1707829832671,-1408.83148395,0.00028927,2]
[313925268,1707829832681,-631.9829174,0.00028927,2]
[313925270,1707829832690,-701.36979445,0.00028927,2]
[313925272,1707829832699,-545.98654233,0.00028927,2]
[313925274,1707829832708,-155.0,0.00028927,2]
[313925275,1707829832717,-364.51090599,0.00028927,2]
[313925277,1707829832726,-922.80527199,0.00028927,2]
[313925279,1707829832735,-202.13886159,0.00028927,2]
[313925281,1707829832745,-205.52529998,0.00028928,2]
[313925283,1707829832754,-1247.44746269,0.00028929,2]
[313925285,1707829832770,-11361.0,0.00028929,2]
[313925356,1707829838157,-11291.55253731,0.00028929,2]
[313925357,1707829838167,-47.53750469,0.00028956,2]
[313925358,1707829838211,-111.50249531,0.00028956,2]
[313925359,1707829838221,-2000.0,0.00028957,2]
[313925360,1707829838230,-351.35,0.00029006,2]
[313925361,1707829838244,-200.0,0.00029024,2]
[313925362,1707829838254,-205.0,0.00029039,2]
[313925363,1707829838264,-512.16124694,0.00029098,2]
[313925364,1707829838273,-159.04,0.0002917,2]
[313925365,1707829838282,-159.04,0.00029384,2]
[313925366,1707829838291,-150.0,0.00029492,2]
[313925367,1707829838301,-2419.0,0.000295,2]
[313925368,1707829838311,-2050.74127424,0.000295,2]
[313925369,1707829838322,-261.99836,0.000295,2]
[313925370,1707829838339,-2052.82244843,0.000295,2]
[313925371,1707829838355,-2691.5800463,0.000295,2]
[313925372,1707829838367,-446.04655466,0.000295,2]
[313925373,1707829838383,-263.85947574,0.000295,2]
[313925374,1707829838435,-3341.95184063,0.000295,2]
[313925375,1707829838445,-502.03,0.00029565,2]
[313925376,1707829838454,-159.04,0.00029598,2]
[313925377,1707829838463,-1000.0,0.000296,2]
[313925378,1707829838473,-10095.1198,0.000296,2]
[313925379,1707829838482,-5470.1286,0.00029665,2]
[313925380,1707829838491,-47425.8543,0.00029665,2]
[313925381,1707829838500,-266.3223,0.00029665,2]
[313925382,1707829838510,-3430.47876773,0.00029684,2]
[313925383,1707829838519,-1861.77730361,0.00029763,2]
[313925384,1707829838528,-253.40152158,0.00029764,2]
[313925385,1707829838538,-500.0,0.00029764,2]
[313925386,1707829838547,-500.0,0.00029764,2]
[313925387,1707829838557,-500.0,0.00029764,2]
[313925388,1707829838569,-500.0,0.00029764,2]
[313925389,1707829838578,-500.0,0.00029764,2]
[313925390,1707829838588,-500.0,0.00029764,2]
[313925391,1707829838598,-500.0,0.00029764,2]
[313925392,1707829838607,-500.0,0.00029764,2]
[313925393,1707829838617,-500.0,0.00029764,2]
[313925394,1707829838627,-500.0,0.00029764,2]
[313925395,1707829838636,-500.0,0.00029764,2]
[313925396,1707829838645,-500.0,0.00029764,2]
[313925397,1707829838654,-500.0,0.00029764,2]
[313925398,1707829838664,-500.0,0.00029764,2]
[313925400,1707829838674,-500.0,0.00029764,2]
[313925402,1707829838683,-500.0,0.00029764,2]
[313925404,1707829838693,-500.0,0.00029764,2]
[313925406,1707829838702,-500.0,0.00029764,2]
[313925408,1707829838711,-500.0,0.00029764,2]
[313925410,1707829838721,-500.0,0.00029764,2]
[313925412,1707829838731,-500.0,0.00029764,2]
[313925414,1707829838741,-500.0,0.00029764,2]
[313925416,1707829838751,-500.0,0.00029764,2]
[313925418,1707829838760,-164289.8744,0.00029765,2]
[313925420,1707829838770,-176.51957727,0.000298,2]
[313925422,1707829838779,-159.04,0.00029812,2]
[313925424,1707829838789,-668.16470588,0.00029862,2]
[313925426,1707829838798,-258.30377655,0.00029862,2]
[313925428,1707829838808,-320.47611314,0.00029862,2]
[313925431,1707829838818,-330.97423961,0.00029862,2]
[313925433,1707829838830,-500.0,0.00029862,2]
[313925435,1707829838840,-500.0,0.00029862,2]
[313925437,1707829838849,-500.0,0.00029862,2]
[313925439,1707829838858,-500.0,0.00029862,2]
[313925441,1707829838867,-500.0,0.00029862,2]
[313925443,1707829838877,-500.0,0.00029862,2]
[313925445,1707829838886,-576.31605502,0.00029862,2]
[313925447,1707829838895,-500.0,0.00029862,2]
[313925449,1707829838905,-500.0,0.00029862,2]
[313925451,1707829838914,-500.0,0.00029862,2]
[313925453,1707829838924,-1046.72092174,0.00029863,2]
[313925455,1707829838934,-202.53412496,0.00029863,2]
[313925457,1707829838943,-323.3445802,0.00029863,2]
[313925459,1707829838953,-402.59329502,0.00029863,2]
[313925461,1707829838963,-346.33379809,0.00029864,3]
[313925463,1707829838976,-704.20729416,0.00029864,2]
[313925465,1707829838985,-36143.70190612,0.00029864,2]
[313925467,1707829838994,-3252.55347308,0.00029865,7]
[313925469,1707829839008,-697.69165252,0.00029865,7]
[313925471,1707829839018,-15416.92740936,0.00029865,7]
[313925473,1707829839027,-5170.65276565,0.00029865,7]
[313925475,1707829839036,-2539.35966957,0.00029865,7]
[313925477,1707829839049,-1369.483814,0.00029865,7]
[313925480,1707829839061,-1769.61381994,0.00029865,7]
[313925482,1707829839072,-710.27740021,0.00029865,7]
[313925484,1707829839081,-66024.22616413,0.00029865,7]
[313925486,1707829839090,-30953.83233047,0.00029865,7]
[313925513,1707829839335,-500.0,0.00029899,2]
[313925515,1707829839346,-551.82290289,0.00029899,2]
[313925518,1707829839357,-259.64559563,0.00029899,2]
[313925520,1707829839366,-316.35814983,0.00029899,2]
[313925522,1707829839378,-500.0,0.00029899,2]
[313925524,1707829839387,-500.0,0.00029899,2]
[313925526,1707829839396,-429.99639302,0.00029899,2]
[313925528,1707829839405,-504.09741462,0.00029899,2]
[313925530,1707829839414,-500.0,0.00029899,2]
[313925532,1707829839423,-500.0,0.00029899,2]
[313925534,1707829839433,-374.51258197,0.00029899,2]
[313925536,1707829839442,-500.0,0.00029899,2]
[313925538,1707829839451,-500.0,0.00029899,2]